[Event "Hungarian Rapid-ch 2022"]
[Site "Ajka"]
[Date "2022.07.15"]
[Round "2.24"]
[White "Hoang, Thanh Trang"]
[Black "Pogany, Zsombor"]
[Result "1/2-1/2"]
[ECO "A48"]
[WhiteElo "2376"]
[BlackElo "2178"]
[Annotator "ChessBase"]
[PlyCount "88"]
[EventDate "2022.07.15"]
[EventType "swiss"]
[EventCountry "HUN"]
[SourceTitle "playchess.com"]
[Source "ChessBase"]
[SourceQuality "1"]
[TimeControl "900+10"]

1. d4 {[%emt 0:00:14]} Nf6 {[%emt 0:00:16]} 2. Nf3 {[%emt 0:00:04]} g6 {[%emt 0:00:06]} 3. Bf4 {[%emt 0:00:16]} Bg7 {[%emt 0:00:31]} 4. e3 {[%emt 0:00:10]} O-O {[%emt 0:00:34]} 5. h3 {[%emt 0:00:15]} b6 {[%emt 0:01:14]} 6. Be2 {[%emt 0:00:15]} Bb7 {[%emt 0:00:14]} 7. O-O {[%emt 0:00:10]} d6 {[%emt 0:00:27]} 8. Nbd2 {[%emt 0:00:18]} Nbd7 {[%emt 0:00:28]} 9. a4 {[%emt 0:00:39]} a5 {[%emt 0:00:25]} 10. Bh2 {[%emt 0:00:32]} Ne4 {[%emt 0:01:08]} 11. c3 {[%emt 0:00:58]} e6 {[%emt 0:02:12]} 12. Nxe4 {[%emt 0:01:23]} Bxe4 {[%emt 0:00:03]} 13. Nd2 {[%emt 0:00:16]} Bb7 {[%emt 0:00:08]} 14. e4 {[%emt 0:02:18]} e5 {[%emt 0:00:38]} 15. d5 {[%emt 0:00:41]} f5 {[%emt 0:03:14]} 16. Bb5 {[%emt 0:00:40]} Nc5 {[%emt 0:01:04]} 17. exf5 {[%emt 0:01:44]} Bxd5 {[%emt 0:01:16]} 18. b4 {[%emt 0:00:51]} Ne4 {[%emt 0:01:07]} 19. Nxe4 {[%emt 0:01:47]} Bxe4 {[%emt 0:00:03]} 20. fxg6 {[%emt 0:00:11]} hxg6 {[%emt 0:00:35]} 21. Bc4+ {[%emt 0:00:25]} Kh7 {[%emt 0:00:23]} 22. Bd5 {[%emt 0:00:11]} Bxd5 {[%emt 0:00:13]} 23. Qxd5 {[%emt 0:00:01]} Qd7 {[%emt 0:00:48]} 24. b5 {[%emt 0:00:03]} Rae8 {[%emt 0:00:25]} 25. Rad1 {[%emt 0:00:28]} Qf7 {[%emt 0:00:30]} 26. Qc6 {[%emt 0:00:34]} Bh6 {[%emt 0:00:22]} 27. Bg3 {[%emt 0:00:26]} Bf4 {[%emt 0:00:48]} 28. Bxf4 {[%emt 0:00:12]} exf4 {[%emt 0:00:02]} 29. Rfe1 {[%emt 0:00:06]} Re7 {[%emt 0:00:12]} 30. Rxe7 {[%emt 0:02:02]} Qxe7 {[%emt 0:00:02]} 31. Rd4 {[%emt 0:00:31]} Rf7 {[%emt 0:00:37]} 32. Re4 {[%emt 0:00:11]} Qg5 {[%emt 0:00:10]} 33. f3 {[%emt 0:00:39]} Kg7 {[%emt 0:00:11]} 34. Re8 {[%emt 0:00:16]} Re7 35. Rxe7+ {[%emt 0:00:42]} Qxe7 {[%emt 0:00:08]} 36. Kf1 {[%emt 0:00:05]} g5 {[%emt 0:00:07]} 37. Qc4 {[%emt 0:00:05]} Kf6 {[%emt 0:00:10]} 38. Qg8 {[%emt 0:00:17]} Qe3 {[%emt 0:00:25]} 39. Qd8+ {[%emt 0:00:21]} Kg6 {[%emt 0:00:01]} 40. Qg8+ {[%emt 0:00:10]} Kf6 {[%emt 0:00:02]} 41. Qd8+ {[%emt 0:00:06]} Kg6 {[%emt 0:00:01]} 42. Qxc7 {[%emt 0:00:05]} Qc1+ {[%emt 0:00:13]} 43. Kf2 {[%emt 0:00:10]} Qe3+ {[%emt 0:00:03]} 44. Kf1 {[%emt 0:00:01]} Qc1+ 1/2-1/2

[Event "Hungarian Rapid-ch 2022"]
[Site "Ajka"]
[Date "2022.07.15"]
[Round "2.25"]
[White "Kiss, Gergely"]
[Black "Straubinger, Daniel"]
[Result "1/2-1/2"]
[ECO "D11"]
[WhiteElo "2166"]
[BlackElo "2349"]
[Annotator "ChessBase"]
[PlyCount "96"]
[EventDate "2022.07.15"]
[EventType "swiss"]
[EventCountry "HUN"]
[SourceTitle "playchess.com"]
[Source "ChessBase"]
[SourceQuality "1"]
[TimeControl "900+10"]

1. d4 {[%emt 0:00:13]} d5 {[%emt 0:00:18]} 2. Nf3 {[%emt 0:00:21]} Nf6 {[%emt 0:00:20]} 3. c4 {[%emt 0:00:23]} c6 {[%emt 0:00:05]} 4. e3 {[%emt 0:00:11]} Bg4 {[%emt 0:00:07]} 5. Nc3 {[%emt 0:00:38]} e6 {[%emt 0:00:15]} 6. Qb3 {[%emt 0:00:11]} Qc7 {[%emt 0:01:31]} 7. Ne5 {[%emt 0:00:49]} Bf5 {[%emt 0:00:17]} 8. Bd2 {[%emt 0:01:01]} Nbd7 {[%emt 0:00:18]} 9. f4 {[%emt 0:00:32]} Ne4 {[%emt 0:00:46]} 10. Nxe4 {[%emt 0:01:44]} Bxe4 {[%emt 0:00:03]} 11. Rc1 {[%emt 0:00:52]} Be7 {[%emt 0:00:56]} 12. Nf3 {[%emt 0:01:42]} O-O {[%emt 0:02:19]} 13. Be2 {[%emt 0:00:03]} Qb6 {[%emt 0:00:48]} 14. Qxb6 {[%emt 0:02:00]} axb6 {[%emt 0:00:28]} 15. a3 {[%emt 0:00:07]} Rfe8 {[%emt 0:01:25]} 16. O-O {[%emt 0:00:10]} f6 {[%emt 0:00:07]} 17. Bc3 {[%emt 0:00:43]} Bd6 {[%emt 0:02:06]} 18. Nd2 {[%emt 0:00:53]} f5 {[%emt 0:00:02]} 19. Nf3 {[%emt 0:00:15]} dxc4 {[%emt 0:00:46]} 20. Bxc4 {[%emt 0:00:10]} b5 21. Be2 {[%emt 0:00:31]} Nb6 {[%emt 0:00:12]} 22. Nd2 {[%emt 0:00:07]} Nd5 {[%emt 0:00:37]} 23. Nxe4 {[%emt 0:00:24]} fxe4 {[%emt 0:00:02]} 24. Bd2 {[%emt 0:00:17]} b4 {[%emt 0:00:01]} 25. axb4 {[%emt 0:00:40]} Ra2 {[%emt 0:00:01]} 26. Rc2 {[%emt 0:00:27]} Bxb4 {[%emt 0:01:23]} 27. Bc1 {[%emt 0:00:23]} Bd6 {[%emt 0:00:44]} 28. Bd2 {[%emt 0:00:11]} Rea8 {[%emt 0:00:07]} 29. Bc4 {[%emt 0:00:24]} Ra1 {[%emt 0:00:02]} 30. Rcc1 {[%emt 0:00:15]} Rxc1 {[%emt 0:00:03]} 31. Rxc1 {[%emt 0:00:02]} Kf7 {[%emt 0:00:09]} 32. Rf1 {[%emt 0:00:10]} g6 {[%emt 0:00:36]} 33. g4 {[%emt 0:00:03]} Ke7 {[%emt 0:00:02]} 34. Bb3 {[%emt 0:00:07]} Bb4 {[%emt 0:00:21]} 35. Bc1 {[%emt 0:00:28]} Nf6 {[%emt 0:00:44]} 36. h3 {[%emt 0:00:14]} h5 {[%emt 0:00:01]} 37. g5 {[%emt 0:00:10]} Ne8 {[%emt 0:00:01]} 38. Rd1 {[%emt 0:00:29]} Nd6 {[%emt 0:00:15]} 39. Bc2 {[%emt 0:00:08]} Kd7 {[%emt 0:00:24]} 40. Kf2 {[%emt 0:00:05]} Ra1 {[%emt 0:00:01]} 41. Ke2 {[%emt 0:00:11]} Ra2 {[%emt 0:00:21]} 42. Bb1 {[%emt 0:00:05]} Ra1 {[%emt 0:00:04]} 43. Bc2 {[%emt 0:00:01]} Kc7 {[%emt 0:00:14]} 44. Bb3 {[%emt 0:00:10]} Kd7 {[%emt 0:00:15]} 45. Bc2 {[%emt 0:00:02]} b5 {[%emt 0:00:46]} 46. Rg1 {[%emt 0:01:16]} Ke7 {[%emt 0:00:31]} 47. Rd1 {[%emt 0:00:07]} Kd7 {[%emt 0:00:34]} 48. Rg1 {[%emt 0:00:03]} Ke7 {[%emt 0:00:34]} 1/2-1/2

[Event "Hungarian Rapid-ch 2022"]
[Site "Ajka"]
[Date "2022.07.15"]
[Round "2.26"]
[White "Emodi, Barnabas"]
[Black "Tubak, Daniel"]
[Result "1-0"]
[ECO "D26"]
[WhiteElo "2341"]
[BlackElo "2182"]
[Annotator "ChessBase"]
[PlyCount "73"]
[EventDate "2022.07.15"]
[EventType "swiss"]
[EventCountry "HUN"]
[SourceTitle "playchess.com"]
[Source "ChessBase"]
[SourceQuality "1"]
[TimeControl "900+10"]

1. d4 {[%emt 0:00:20]} Nf6 {[%emt 0:00:14]} 2. Nf3 {[%emt 0:00:04]} d5 {[%emt 0:00:03]} 3. c4 {[%emt 0:00:05]} dxc4 {[%emt 0:00:05]} 4. e3 {[%emt 0:00:05]} e6 {[%emt 0:00:17]} 5. Bxc4 {[%emt 0:00:18]} a6 {[%emt 0:00:07]} 6. a4 {[%emt 0:00:09]} b6 {[%emt 0:00:14]} 7. O-O {[%emt 0:00:34]} Bb7 {[%emt 0:00:02]} 8. Nc3 {[%emt 0:01:05]} Be7 {[%emt 0:00:07]} 9. Qe2 {[%emt 0:00:32]} O-O {[%emt 0:00:20]} 10. Rd1 {[%emt 0:00:23]} Nbd7 {[%emt 0:00:42]} 11. e4 {[%emt 0:00:53]} Ra7 {[%emt 0:00:46]} 12. e5 {[%emt 0:01:14]} Nd5 {[%emt 0:00:22]} 13. Nxd5 {[%emt 0:00:14]} Bxd5 {[%emt 0:00:02]} 14. Bxd5 {[%emt 0:00:22]} exd5 {[%emt 0:00:02]} 15. e6 {[%emt 0:00:34]} Nb8 {[%emt 0:01:41]} 16. exf7+ {[%emt 0:01:02]} Rxf7 {[%emt 0:00:02]} 17. Ne5 {[%emt 0:00:13]} Rf8 {[%emt 0:00:09]} 18. Be3 {[%emt 0:00:35]} Bd6 {[%emt 0:00:16]} 19. f4 {[%emt 0:02:05]} Ra8 {[%emt 0:00:35]} 20. Rac1 {[%emt 0:00:26]} Nd7 {[%emt 0:00:11]} 21. Qf3 {[%emt 0:00:40]} Nf6 {[%emt 0:00:08]} 22. Qh3 {[%emt 0:01:24]} Qc8 {[%emt 0:00:11]} 23. Qxc8 {[%emt 0:01:33]} Raxc8 {[%emt 0:00:01]} 24. Rc6 {[%emt 0:00:14]} Ne4 {[%emt 0:00:46]} 25. g3 {[%emt 0:00:36]} a5 {[%emt 0:00:51]} 26. Rdc1 {[%emt 0:00:03]} Rcd8 {[%emt 0:00:08]} 27. Kg2 {[%emt 0:00:36]} h6 {[%emt 0:00:39]} 28. h4 {[%emt 0:00:11]} g5 {[%emt 0:00:19]} 29. hxg5 {[%emt 0:00:20]} hxg5 {[%emt 0:00:01]} 30. fxg5 {[%emt 0:00:04]} Rf5 {[%emt 0:01:21]} 31. Ng4 {[%emt 0:00:25]} Kg7 {[%emt 0:00:26]} 32. Nh6 {[%emt 0:00:20]} Nxg3 {[%emt 0:00:49]} 33. Rxd6 {[%emt 0:00:29]} cxd6 {[%emt 0:01:05]} 34. Kxg3 {[%emt 0:00:04]} Rff8 {[%emt 0:00:02]} 35. Bf4 {[%emt 0:00:23]} Rc8 {[%emt 0:00:20]} 36. Nf5+ {[%emt 0:00:19]} Kh7 {[%emt 0:00:40]} 37. g6+ {[%emt 0:00:11]} 1-0

[Event "Hungarian Rapid-ch 2022"]
[Site "Ajka"]
[Date "2022.07.15"]
[Round "2.27"]
[White "Nemeth, Zsolt"]
[Black "Leviczky, Tibor"]
[Result "0-1"]
[ECO "B40"]
[WhiteElo "1980"]
[BlackElo "2281"]
[Annotator "ChessBase"]
[PlyCount "78"]
[EventDate "2022.07.15"]
[EventType "swiss"]
[EventCountry "HUN"]
[SourceTitle "playchess.com"]
[Source "ChessBase"]
[SourceQuality "1"]
[TimeControl "900+10"]

1. e4 {[%emt 0:00:14]} c5 {[%emt 0:00:29]} 2. Nf3 {[%emt 0:00:02]} e6 {[%emt 0:00:05]} 3. d3 {[%emt 0:00:05]} Nc6 {[%emt 0:00:03]} 4. g3 {[%emt 0:00:04]} g6 {[%emt 0:00:14]} 5. Bg2 {[%emt 0:00:04]} Bg7 {[%emt 0:00:02]} 6. O-O {[%emt 0:00:06]} Nge7 {[%emt 0:00:03]} 7. Re1 {[%emt 0:00:16]} d6 {[%emt 0:00:03]} 8. Nbd2 {[%emt 0:00:23]} O-O {[%emt 0:00:05]} 9. c3 {[%emt 0:00:35]} e5 {[%emt 0:00:09]} 10. Nf1 {[%emt 0:01:30]} d5 {[%emt 0:02:57]} 11. exd5 {[%emt 0:01:36]} Nxd5 {[%emt 0:00:03]} 12. Ne3 {[%emt 0:00:07]} Nde7 {[%emt 0:02:21]} 13. Nc4 {[%emt 0:00:17]} f6 {[%emt 0:00:11]} 14. Be3 {[%emt 0:02:13]} b6 {[%emt 0:00:07]} 15. d4 {[%emt 0:00:25]} cxd4 {[%emt 0:00:16]} 16. cxd4 {[%emt 0:00:02]} e4 {[%emt 0:00:07]} 17. Nfd2 {[%emt 0:00:27]} f5 {[%emt 0:00:07]} 18. Nb3 {[%emt 0:00:51]} Be6 {[%emt 0:00:51]} 19. Bf1 {[%emt 0:00:53]} Nd5 {[%emt 0:00:50]} 20. Qd2 {[%emt 0:00:57]} Rc8 {[%emt 0:00:39]} 21. Rac1 {[%emt 0:00:19]} Re8 {[%emt 0:01:19]} 22. Bg5 {[%emt 0:00:44]} Qd7 {[%emt 0:00:17]} 23. Red1 {[%emt 0:00:23]} Bf7 {[%emt 0:01:22]} 24. Ne3 {[%emt 0:00:19]} Ncb4 {[%emt 0:02:49]} 25. Nxd5 {[%emt 0:00:31]} Nxd5 {[%emt 0:00:03]} 26. Ba6 {[%emt 0:00:24]} Rxc1 {[%emt 0:00:24]} 27. Rxc1 {[%emt 0:00:08]} Bf8 {[%emt 0:00:29]} 28. Qe2 {[%emt 0:00:35]} Qe6 {[%emt 0:00:44]} 29. Bb5 {[%emt 0:00:57]} Rc8 {[%emt 0:00:11]} 30. Rxc8 {[%emt 0:00:07]} Qxc8 {[%emt 0:00:01]} 31. Qc4 {[%emt 0:00:27]} Qxc4 {[%emt 0:00:12]} 32. Bxc4 {[%emt 0:00:01]} Nb4 {[%emt 0:00:08]} 33. Bxf7+ {[%emt 0:00:03]} Kxf7 {[%emt 0:00:01]} 34. Nc1 {[%emt 0:00:10]} Ke6 {[%emt 0:00:32]} 35. Bd2 {[%emt 0:00:36]} Nc2 {[%emt 0:01:11]} 36. Ne2 {[%emt 0:00:07]} Bd6 {[%emt 0:00:46]} 37. Be3 {[%emt 0:00:31]} Nb4 {[%emt 0:00:13]} 38. a3 {[%emt 0:00:41]} Nd3 {[%emt 0:00:06]} 39. b4 {[%emt 0:00:17]} Kd5 {[%emt 0:00:03]} 0-1

[Event "Hungarian Rapid-ch 2022"]
[Site "Ajka"]
[Date "2022.07.15"]
[Round "2.28"]
[White "Krstulovic, Alex"]
[Black "Juhasz, Zoltan"]
[Result "1-0"]
[ECO "C00"]
[WhiteElo "2413"]
[BlackElo "1985"]
[Annotator "ChessBase"]
[PlyCount "69"]
[EventDate "2022.07.15"]
[EventType "swiss"]
[EventCountry "HUN"]
[SourceTitle "playchess.com"]
[Source "ChessBase"]
[SourceQuality "1"]
[TimeControl "900+10"]

1. e4 {[%emt 0:00:12]} e6 {[%emt 0:00:17]} 2. a3 {[%emt 0:00:09]} d5 {[%emt 0:00:11]} 3. e5 {[%emt 0:00:01]} c5 {[%emt 0:00:55]} 4. b4 {[%emt 0:00:02]} c4 {[%emt 0:00:22]} 5. d3 {[%emt 0:00:22]} b5 {[%emt 0:00:20]} 6. dxc4 {[%emt 0:00:25]} bxc4 {[%emt 0:00:19]} 7. Be3 {[%emt 0:00:24]} Bd7 {[%emt 0:00:51]} 8. Nc3 {[%emt 0:00:05]} Ne7 {[%emt 0:00:30]} 9. f4 {[%emt 0:01:08]} Nf5 {[%emt 0:00:14]} 10. Bf2 {[%emt 0:00:02]} h5 {[%emt 0:01:34]} 11. Nf3 {[%emt 0:00:02]} Na6 {[%emt 0:00:51]} 12. Ne2 {[%emt 0:00:15]} Nc7 {[%emt 0:00:36]} 13. Ned4 {[%emt 0:00:04]} Nxd4 {[%emt 0:01:33]} 14. Nxd4 {[%emt 0:00:02]} Nb5 {[%emt 0:00:20]} 15. Nxb5 {[%emt 0:00:22]} Bxb5 {[%emt 0:00:05]} 16. c3 {[%emt 0:00:04]} a6 {[%emt 0:01:41]} 17. a4 {[%emt 0:00:05]} Bc6 {[%emt 0:00:09]} 18. Bd4 {[%emt 0:00:36]} g5 {[%emt 0:01:19]} 19. f5 {[%emt 0:01:14]} g4 {[%emt 0:00:36]} 20. Be2 {[%emt 0:00:30]} Qh4+ {[%emt 0:02:30]} 21. Bf2 {[%emt 0:00:48]} Qg5 {[%emt 0:00:10]} 22. fxe6 {[%emt 0:00:06]} fxe6 {[%emt 0:00:13]} 23. O-O {[%emt 0:00:07]} Bg7 {[%emt 0:00:07]} 24. b5 {[%emt 0:00:28]} Bb7 {[%emt 0:00:58]} 25. Qd4 {[%emt 0:00:02]} O-O {[%emt 0:00:57]} 26. Qb6 {[%emt 0:00:02]} Bc8 {[%emt 0:00:39]} 27. Qc6 {[%emt 0:00:01]} Rb8 {[%emt 0:00:14]} 28. bxa6 {[%emt 0:00:02]} Rb2 {[%emt 0:00:49]} 29. Bc5 {[%emt 0:01:15]} Rd8 {[%emt 0:00:27]} 30. a7 {[%emt 0:01:48]} Bd7 {[%emt 0:00:02]} 31. a8=Q {[%emt 0:01:06]} Bxc6 {[%emt 0:00:03]} 32. Qxc6 {[%emt 0:00:02]} Rxe2 {[%emt 0:00:18]} 33. Qxe6+ {[%emt 0:00:01]} Kh8 {[%emt 0:00:15]} 34. Rf5 {[%emt 0:00:10]} Rxe5 35. Qxe5 1-0

[Event "Hungarian Rapid-ch 2022"]
[Site "Ajka"]
[Date "2022.07.15"]
[Round "2.29"]
[White "Kolimar, Kristof Pal"]
[Black "Lazarne Vajda, Szidonia"]
[Result "0-1"]
[ECO "A06"]
[WhiteElo "2160"]
[BlackElo "2313"]
[Annotator "ChessBase"]
[PlyCount "160"]
[EventDate "2022.07.15"]
[EventType "swiss"]
[EventCountry "HUN"]
[SourceTitle "playchess.com"]
[Source "ChessBase"]
[SourceQuality "1"]
[TimeControl "900+10"]

1. Nf3 {[%emt 0:00:12]} d5 {[%emt 0:00:31]} 2. c4 {[%emt 0:00:03]} c6 {[%emt 0:00:05]} 3. d4 {[%emt 0:00:03]} Nf6 {[%emt 0:00:08]} 4. Qc2 {[%emt 0:00:22]} dxc4 {[%emt 0:01:05]} 5. Qxc4 {[%emt 0:00:02]} Bf5 {[%emt 0:00:06]} 6. g3 {[%emt 0:00:03]} e6 {[%emt 0:00:46]} 7. Nc3 {[%emt 0:00:04]} Nbd7 {[%emt 0:00:06]} 8. Bg2 {[%emt 0:00:02]} Be7 {[%emt 0:00:19]} 9. O-O {[%emt 0:00:02]} O-O {[%emt 0:00:10]} 10. Re1 {[%emt 0:00:01]} Ne4 {[%emt 0:00:25]} 11. Bf4 {[%emt 0:00:02]} Nxc3 {[%emt 0:00:25]} 12. bxc3 {[%emt 0:00:10]} Be4 {[%emt 0:00:05]} 13. Qb3 {[%emt 0:01:07]} Qb6 {[%emt 0:00:40]} 14. Bh3 {[%emt 0:01:52]} Qxb3 {[%emt 0:01:31]} 15. axb3 {[%emt 0:00:02]} Bxf3 {[%emt 0:00:26]} 16. exf3 {[%emt 0:00:01]} Nb6 {[%emt 0:00:54]} 17. Bd2 {[%emt 0:01:02]} Bf6 {[%emt 0:00:19]} 18. Ra5 {[%emt 0:01:51]} a6 {[%emt 0:00:35]} 19. f4 {[%emt 0:02:15]} g6 {[%emt 0:01:01]} 20. Bf1 {[%emt 0:00:22]} Rfd8 {[%emt 0:01:03]} 21. Kg2 {[%emt 0:02:12]} Rac8 {[%emt 0:00:03]} 22. Ra2 {[%emt 0:00:58]} Rd7 {[%emt 0:01:37]} 23. b4 {[%emt 0:01:35]} Nd5 {[%emt 0:00:10]} 24. Rd1 {[%emt 0:01:00]} h5 {[%emt 0:00:26]} 25. h3 {[%emt 0:00:55]} Rcd8 {[%emt 0:01:30]} 26. Kf3 {[%emt 0:00:17]} Ne7 {[%emt 0:00:09]} 27. Bd3 {[%emt 0:00:42]} Nf5 {[%emt 0:00:59]} 28. g4 {[%emt 0:00:30]} hxg4+ {[%emt 0:00:26]} 29. hxg4 {[%emt 0:00:01]} Ne7 {[%emt 0:00:32]} 30. Bc4 {[%emt 0:00:36]} Bg7 {[%emt 0:00:54]} 31. Bb3 {[%emt 0:00:10]} Nd5 {[%emt 0:00:09]} 32. Rc2 {[%emt 0:00:35]} Kf8 {[%emt 0:00:12]} 33. Rcc1 {[%emt 0:00:24]} Nc7 {[%emt 0:00:02]} 34. Ke2 {[%emt 0:00:31]} Nb5 {[%emt 0:00:02]} 35. Be3 {[%emt 0:00:17]} Ke7 {[%emt 0:00:10]} 36. Bc4 {[%emt 0:00:13]} Nc7 {[%emt 0:00:06]} 37. Bd3 {[%emt 0:00:04]} Nd5 {[%emt 0:00:13]} 38. Be4 {[%emt 0:00:32]} Rh8 {[%emt 0:01:20]} 39. f5 {[%emt 0:00:14]} Nxe3 {[%emt 0:00:11]} 40. fxe3 {[%emt 0:00:03]} gxf5 {[%emt 0:00:15]} 41. gxf5 {[%emt 0:00:01]} Rh2+ {[%emt 0:00:09]} 42. Kd3 {[%emt 0:00:02]} e5 {[%emt 0:00:14]} 43. Rh1 {[%emt 0:00:02]} Rxh1 {[%emt 0:00:07]} 44. Rxh1 {[%emt 0:00:01]} exd4 {[%emt 0:00:02]} 45. cxd4 {[%emt 0:00:21]} Rd8 {[%emt 0:00:01]} 46. Rg1 {[%emt 0:00:08]} Bf6 {[%emt 0:00:01]} 47. Rg4 {[%emt 0:00:01]} Kd6 {[%emt 0:00:14]} 48. Bf3 {[%emt 0:00:02]} Kc7 {[%emt 0:00:05]} 49. Bd1 {[%emt 0:00:13]} b6 {[%emt 0:00:02]} 50. Bb3 {[%emt 0:00:01]} Rd7 {[%emt 0:00:01]} 51. Rg1 {[%emt 0:00:07]} a5 {[%emt 0:00:09]} 52. bxa5 {[%emt 0:00:04]} bxa5 53. Rc1 {[%emt 0:00:02]} Kb6 {[%emt 0:00:01]} 54. Ba4 {[%emt 0:00:01]} Rd6 {[%emt 0:00:04]} 55. Kc4 {[%emt 0:00:26]} Kc7 {[%emt 0:00:20]} 56. Rd1 {[%emt 0:00:06]} Rd8 {[%emt 0:00:14]} 57. e4 {[%emt 0:00:21]} Rb8 {[%emt 0:00:01]} 58. Bb3 {[%emt 0:00:50]} Rb4+ {[%emt 0:00:04]} 59. Kc3 {[%emt 0:00:01]} c5 {[%emt 0:00:01]} 60. Bxf7 {[%emt 0:00:03]} Rxd4 {[%emt 0:01:40]} 61. Kc2 {[%emt 0:00:31]} Rxe4 {[%emt 0:00:07]} 62. Be6 {[%emt 0:00:02]} Bd4 {[%emt 0:00:22]} 63. Rb1 {[%emt 0:00:13]} Rf4 {[%emt 0:00:11]} 64. Kb3 {[%emt 0:00:13]} Be5 {[%emt 0:00:04]} 65. Rc1 {[%emt 0:00:04]} Kb6 {[%emt 0:00:08]} 66. Rc4 {[%emt 0:00:05]} Rf3+ {[%emt 0:00:08]} 67. Ka2 {[%emt 0:00:29]} Rf2+ {[%emt 0:00:11]} 68. Kb3 {[%emt 0:00:05]} Rf3+ {[%emt 0:00:07]} 69. Ka2 {[%emt 0:00:01]} Kb5 {[%emt 0:00:01]} 70. Re4 {[%emt 0:00:09]} Bd4 {[%emt 0:00:01]} 71. Bd7+ {[%emt 0:00:25]} Kb4 {[%emt 0:00:02]} 72. Re1 {[%emt 0:00:02]} Rf2+ {[%emt 0:00:04]} 73. Kb1 a4 {[%emt 0:00:01]} 74. Re8 {[%emt 0:00:10]} a3 {[%emt 0:00:04]} 75. Rb8+ {[%emt 0:00:01]} Kc3 {[%emt 0:00:02]} 76. Be6 {[%emt 0:00:06]} c4 {[%emt 0:00:05]} 77. Ka1 {[%emt 0:00:20]} Be5 {[%emt 0:00:39]} 78. Rb5 {[%emt 0:00:03]} Bd4 {[%emt 0:00:24]} 79. Rb7 {[%emt 0:00:46]} Kd3+ {[%emt 0:00:01]} 80. Kb1 {[%emt 0:00:01]} a2+ 0-1

[Event "Hungarian Rapid-ch 2022"]
[Site "Ajka"]
[Date "2022.07.15"]
[Round "2.30"]
[White "Lakos, Nikoletta"]
[Black "Molnar, Aurel Jr."]
[Result "0-1"]
[ECO "B40"]
[WhiteElo "2203"]
[BlackElo "2014"]
[Annotator "ChessBase"]
[PlyCount "49"]
[EventDate "2022.07.15"]
[EventType "swiss"]
[EventCountry "HUN"]
[SourceTitle "playchess.com"]
[Source "ChessBase"]
[SourceQuality "1"]
[TimeControl "900+10"]

1. e4 {[%emt 0:00:12]} c5 {[%emt 0:00:14]} 2. Nf3 {[%emt 0:00:05]} e6 {[%emt 0:00:02]} 3. b3 {[%emt 0:00:04]} Nc6 {[%emt 0:00:10]} 4. Bb2 {[%emt 0:00:03]} b6 {[%emt 0:00:47]} 5. g3 {[%emt 0:02:29]} d5 {[%emt 0:02:28]} 6. Bb5 {[%emt 0:01:09]} Bd7 {[%emt 0:00:50]} 7. exd5 {[%emt 0:00:35]} exd5 {[%emt 0:00:06]} 8. O-O {[%emt 0:01:09]} Nf6 {[%emt 0:01:21]} 9. d4 {[%emt 0:01:11]} cxd4 {[%emt 0:03:22]} 10. Re1+ {[%emt 0:00:45]} Ne7 {[%emt 0:02:24]} 11. Nxd4 {[%emt 0:00:43]} a6 {[%emt 0:01:22]} 12. Nc6 {[%emt 0:01:08]} Qc7 {[%emt 0:01:20]} 13. Nxe7 {[%emt 0:01:46]} Bxe7 {[%emt 0:00:01]} 14. Ba3 {[%emt 0:03:17]} axb5 {[%emt 0:00:20]} 15. Rxe7+ {[%emt 0:00:48]} Kd8 {[%emt 0:00:06]} 16. Rxf7 {[%emt 0:00:10]} Qe5 {[%emt 0:00:21]} 17. c3 {[%emt 0:00:27]} Re8 {[%emt 0:00:23]} 18. Bb2 {[%emt 0:00:33]} Bh3 {[%emt 0:00:43]} 19. Nd2 {[%emt 0:00:12]} Rxa2 {[%emt 0:00:08]} 20. Nf3 {[%emt 0:00:12]} Rxa1 {[%emt 0:00:50]} 21. Qxa1 {[%emt 0:00:00]} Qe4 {[%emt 0:00:45]} 22. Qa8+ {[%emt 0:00:02]} Bc8 {[%emt 0:00:01]} 23. Kg2 {[%emt 0:00:57]} Qe6 {[%emt 0:00:39]} 24. Rxg7 {[%emt 0:00:57]} Ne4 {[%emt 0:00:13]} 25. c4 {[%emt 0:00:00]} 0-1

[Event "Hungarian Rapid-ch 2022"]
[Site "Ajka"]
[Date "2022.07.15"]
[Round "3.1"]
[White "Berkes, Ferenc"]
[Black "Emodi, Barnabas"]
[Result "1-0"]
[ECO "E70"]
[WhiteElo "2649"]
[BlackElo "2341"]
[Annotator "ChessBase"]
[PlyCount "81"]
[EventDate "2022.07.15"]
[EventType "swiss"]
[EventCountry "HUN"]
[SourceTitle "playchess.com"]
[Source "ChessBase"]
[SourceQuality "1"]
[TimeControl "900+10"]

1. d4 {[%emt 0:00:11]} Nf6 {[%emt 0:00:14]} 2. c4 {[%emt 0:00:01]} g6 {[%emt 0:00:07]} 3. Nc3 {[%emt 0:00:02]} Bg7 {[%emt 0:00:02]} 4. e4 {[%emt 0:00:03]} O-O {[%emt 0:00:04]} 5. Nf3 {[%emt 0:00:02]} c6 {[%emt 0:00:10]} 6. Bd3 {[%emt 0:00:10]} d6 {[%emt 0:00:28]} 7. O-O {[%emt 0:00:09]} Bg4 {[%emt 0:00:30]} 8. h3 {[%emt 0:00:01]} Bxf3 {[%emt 0:00:17]} 9. Qxf3 {[%emt 0:00:02]} a6 {[%emt 0:00:46]} 10. Rd1 {[%emt 0:00:58]} Nfd7 {[%emt 0:00:28]} 11. Bf1 {[%emt 0:00:08]} b5 {[%emt 0:00:35]} 12. Bg5 {[%emt 0:00:31]} b4 {[%emt 0:01:08]} 13. Ne2 {[%emt 0:00:08]} Ra7 {[%emt 0:00:28]} 14. a3 {[%emt 0:00:35]} bxa3 {[%emt 0:00:30]} 15. Qxa3 {[%emt 0:00:13]} c5 {[%emt 0:00:47]} 16. b4 {[%emt 0:01:49]} cxd4 {[%emt 0:01:18]} 17. Nxd4 {[%emt 0:00:04]} h6 {[%emt 0:00:22]} 18. Be3 {[%emt 0:00:07]} Rc7 {[%emt 0:00:56]} 19. Rac1 {[%emt 0:01:15]} Qc8 {[%emt 0:00:32]} 20. b5 {[%emt 0:00:22]} Nc5 {[%emt 0:00:38]} 21. e5 {[%emt 0:00:53]} dxe5 {[%emt 0:01:51]} 22. Nb3 {[%emt 0:00:01]} Nxb3 {[%emt 0:02:07]} 23. Qxb3 {[%emt 0:00:02]} Nd7 {[%emt 0:00:50]} 24. b6 {[%emt 0:00:24]} Nc5 {[%emt 0:00:57]} 25. Qa3 {[%emt 0:00:29]} Rc6 {[%emt 0:00:13]} 26. Rd5 {[%emt 0:00:02]} Ne6 {[%emt 0:00:50]} 27. c5 {[%emt 0:00:12]} Nd4 {[%emt 0:00:22]} 28. Bxd4 {[%emt 0:01:01]} exd4 {[%emt 0:00:03]} 29. Bxa6 {[%emt 0:00:13]} Qa8 {[%emt 0:00:29]} 30. Rd7 {[%emt 0:00:20]} Rd8 {[%emt 0:00:53]} 31. Rxd8+ {[%emt 0:00:21]} Qxd8 {[%emt 0:00:01]} 32. Bb7 {[%emt 0:00:02]} Re6 {[%emt 0:00:22]} 33. c6 {[%emt 0:01:25]} Qxb6 {[%emt 0:00:17]} 34. c7 {[%emt 0:00:07]} Qxb7 {[%emt 0:00:14]} 35. c8=Q+ {[%emt 0:00:04]} Qxc8 {[%emt 0:00:01]} 36. Rxc8+ {[%emt 0:00:02]} Kh7 {[%emt 0:00:01]} 37. g4 {[%emt 0:00:58]} Bf6 {[%emt 0:00:20]} 38. Rf8 {[%emt 0:00:23]} Kg7 {[%emt 0:00:35]} 39. Qa8 {[%emt 0:00:04]} Be5 {[%emt 0:00:23]} 40. Qe8 {[%emt 0:00:07]} Rf6 {[%emt 0:00:13]} 41. Rg8+ {[%emt 0:00:01]} 1-0